bitfinex/quotes_BTCUSD_20230113
["timestamp","ask_amount","ask_price","bid_price","bid_amount"]
[1673639601319,0.04862,19350.0,19349.0,2.71568208]
[1673639601565,0.04862,19350.0,19349.0,2.56239986]
[1673639601780,0.04862,19350.0,19349.0,3.07922186]
[1673639602029,0.04862,19350.0,19349.0,2.34831275]
[1673639602260,0.04862,19350.0,19349.0,3.32742063]
[1673639602763,0.04862,19350.0,19349.0,3.76537429]
[1673639603013,0.01537416,19351.0,19350.0,0.35689199]
[1673639603263,0.01537416,19351.0,19350.0,1.86453962]
[1673639603508,0.01537416,19351.0,19350.0,2.7675118]
[1673639603750,0.01537416,19351.0,19350.0,2.4461948]
[1673639603978,0.01537416,19351.0,19350.0,2.67611094]
[1673639604216,0.01537416,19351.0,19350.0,2.5851948]
[1673639604467,0.01537416,19351.0,19350.0,2.67611871]
[1673639604712,0.01537416,19351.0,19350.0,2.81511871]
[1673639604944,0.01537416,19351.0,19350.0,2.90650991]
[1673639605183,0.01537416,19351.0,19350.0,2.16368341]
[1673639605452,0.01537416,19351.0,19350.0,2.47004666]
[1673639605702,0.01537416,19351.0,19350.0,2.62919879]
[1673639605950,0.01537416,19351.0,19350.0,2.85897391]
[1673639606204,0.01537416,19351.0,19350.0,2.31661785]
[1673639606489,0.01537416,19351.0,19350.0,2.55963987]
[1673639606719,0.01537416,19351.0,19350.0,2.16345809]
[1673639606974,0.01537416,19351.0,19350.0,2.83341285]
[1673639607217,0.01537416,19351.0,19350.0,3.01081285]
[1673639607463,0.01537416,19351.0,19350.0,2.87181285]
[1673639607702,0.01537416,19351.0,19350.0,3.32437038]
[1673639607942,0.01537416,19351.0,19350.0,3.37752681]
[1673639608183,0.01537416,19351.0,19350.0,2.86073181]
[1673639608440,0.01537416,19351.0,19350.0,2.86062255]
[1673639608708,0.01537416,19351.0,19350.0,2.5931532]
[1673639609444,0.01537416,19351.0,19350.0,1.8243082]
[1673639609691,0.01537416,19351.0,19350.0,1.67115177]
[1673639610696,0.01537416,19351.0,19350.0,1.56094086]
[1673639610945,0.01537416,19351.0,19350.0,3.33742063]
[1673639611207,0.01537416,19351.0,19350.0,2.90116649]
[1673639611454,0.01537416,19351.0,19350.0,2.90091641]
[1673639611718,0.01537416,19351.0,19350.0,3.64328758]
[1673639611958,0.01537416,19351.0,19350.0,3.33717055]
[1673639612206,0.01537416,19351.0,19350.0,3.64326643]
[1673639612457,0.01537416,19351.0,19350.0,3.33717055]
[1673639612994,0.01237349,19352.0,19350.0,4.31925402]
[1673639613244,0.01237349,19352.0,19351.0,1.35662603]
[1673639613245,0.00737349,19352.0,19351.0,1.35662603]
[1673639613499,0.00737349,19352.0,19351.0,2.61917273]
[1673639613733,0.00737349,19352.0,19351.0,3.65271073]
[1673639614500,0.00737349,19352.0,19351.0,4.09071073]
[1673639615510,0.00737349,19352.0,19351.0,4.39646113]
[1673639615749,0.00737349,19352.0,19351.0,4.09646113]
[1673639615994,0.00737349,19352.0,19351.0,3.70814503]
[1673639616733,0.00737349,19352.0,19351.0,3.40814503]
[1673639616987,0.00737349,19352.0,19351.0,3.69586995]
[1673639617506,0.00737349,19352.0,19351.0,4.21254532]
[1673639618002,0.00737349,19352.0,19351.0,3.90683599]
[1673639619247,0.01276526,19353.0,19352.0,0.1]
[1673639619494,0.01276526,19353.0,19352.0,1.10894666]
[1673639619741,0.01276526,19353.0,19352.0,2.70308352]
[1673639620232,0.01276526,19353.0,19352.0,3.13933766]
[1673639620482,0.01276526,19353.0,19352.0,3.08295795]
[1673639620741,0.01276526,19353.0,19352.0,2.71305857]
[1673639620998,0.01276526,19353.0,19352.0,2.19631657]
[1673639621249,0.01276526,19353.0,19352.0,0.352165]
[1673639622268,0.01276526,19353.0,19352.0,0.213165]
[1673639622513,0.01376526,19353.0,19352.0,0.353165]
[1673639623277,1.3838902,19353.0,19352.0,0.14]
[1673639623540,1.80556126,19353.0,19351.0,0.00441087]
[1673639623789,0.114483,19352.0,19351.0,0.00441087]
[1673639624039,0.631225,19352.0,19351.0,0.00441087]
[1673639624293,1.147967,19352.0,19351.0,0.00441087]
[1673639624793,1.147967,19352.0,19351.0,0.00641087]
[1673639625301,1.157967,19352.0,19351.0,0.01541087]
[1673639625544,1.157967,19352.0,19351.0,0.00441087]
[1673639625545,1.32771173,19352.0,19351.0,0.00441087]
[1673639625793,1.33621173,19352.0,19351.0,0.00441087]
[1673639626049,1.63621173,19352.0,19351.0,0.00441087]
[1673639626298,1.456467,19352.0,19351.0,0.00441087]
[1673639627351,1.466467,19352.0,19351.0,0.01441087]
[1673639627597,1.456467,19352.0,19351.0,0.00441087]
[1673639627847,1.166467,19352.0,19351.0,0.01441087]
[1673639628835,1.466467,19352.0,19351.0,0.01441087]
[1673639629083,1.644567,19352.0,19351.0,0.01441087]
[1673639629831,2.6287845,19352.0,19351.0,0.01441087]
[1673639630099,4.09880843,19352.0,19351.0,0.01441087]
[1673639630596,3.6627512,19352.0,19351.0,0.01441087]
[1673639631103,3.9739512,19352.0,19351.0,0.01441087]
[1673639631359,3.74654647,19352.0,19351.0,0.01441087]
[1673639632116,2.71257977,19352.0,19351.0,0.01441087]
[1673639632613,3.69426952,19352.0,19351.0,0.01441087]
[1673639633621,4.21101152,19352.0,19351.0,0.01441087]
[1673639639610,4.21101992,19352.0,19351.0,0.01441087]
[1673639640617,3.1770417,19352.0,19351.0,0.01441087]
[1673639640866,2.250609,19352.0,19351.0,0.01441087]
[1673639642813,2.150609,19352.0,19351.0,0.01441087]
[1673639643059,1.761509,19352.0,19351.0,0.01441087]
[1673639643309,1.747026,19352.0,19351.0,0.01441087]
[1673639643547,1.761509,19352.0,19351.0,0.01441087]
[1673639643775,1.761509,19352.0,19351.0,0.01430435]
[1673639644024,1.747026,19352.0,19351.0,0.01430435]
[1673639644296,2.063002,19352.0,19351.0,0.01430435]
[1673639644539,1.738526,19352.0,19351.0,0.01430435]
[1673639644786,2.063002,19352.0,19351.0,0.01430435]
[1673639645046,1.54626,19352.0,19351.0,0.01430435]
[1673639645318,1.221784,19352.0,19351.0,0.01430435]
[1673639645585,0.01,19352.0,19351.0,0.52199982]
[1673639645847,0.01,19352.0,19351.0,0.73517982]
[1673639646588,0.01,19352.0,19351.0,0.52199982]
[1673639647079,0.01276526,19353.0,19352.0,0.1]
[1673639647329,0.01276526,19353.0,19351.0,0.65199982]
[1673639647330,0.001,19352.0,19351.0,0.65199982]
[1673639647577,0.001,19352.0,19351.0,0.51199982]
[1673639647831,0.001,19352.0,19351.0,1.30794582]
[1673639648076,0.001,19352.0,19351.0,1.40794582]
[1673639649076,0.001,19352.0,19351.0,1.30794582]
[1673639649339,0.21030494,19352.0,19351.0,0.28348135]
[1673639649582,0.516742,19352.0,19351.0,0.00430435]
[1673639650071,0.517742,19352.0,19351.0,0.14430435]
[1673639650321,0.517742,19352.0,19351.0,0.24430435]
[1673639650568,0.517742,19352.0,19351.0,0.14430435]
[1673639651318,0.001,19352.0,19351.0,0.19905512]
[1673639651569,0.00276526,19353.0,19352.0,0.15077419]
[1673639651849,0.00276526,19353.0,19352.0,0.66751619]
[1673639652092,0.00276526,19353.0,19352.0,1.98650684]
[1673639652581,0.00276526,19353.0,19352.0,1.6172527]
[1673639652829,0.00276526,19353.0,19352.0,1.61715411]
[1673639653080,0.00276526,19353.0,19352.0,1.4643246]
[1673639653829,0.00276526,19353.0,19352.0,2.01901311]
[1673639654070,0.00276526,19353.0,19352.0,2.17184262]
[1673639654320,0.00276526,19353.0,19352.0,2.01901311]
[1673639654566,0.00276526,19353.0,19352.0,2.17184262]
[1673639654791,0.00276526,19353.0,19352.0,1.88410636]
[1673639655586,0.00276526,19353.0,19352.0,2.27606565]
[1673639655834,0.00276526,19353.0,19352.0,1.88432281]
[1673639656331,0.00276526,19353.0,19352.0,2.5606988]
[1673639657077,0.00276526,19353.0,19352.0,2.56070093]
[1673639657325,0.00276526,19353.0,19352.0,1.88432051]
[1673639657568,0.00276526,19353.0,19352.0,2.0369972]
[1673639658060,0.00276526,19353.0,19352.0,2.12579003]
[1673639658807,0.00276526,19353.0,19352.0,2.05879003]
[1673639659047,0.00276526,19353.0,19352.0,2.28689003]
[1673639659290,0.00276526,19353.0,19352.0,2.66463203]
[1673639659537,0.00276526,19353.0,19352.0,3.49349787]
[1673639659814,0.00276526,19353.0,19352.0,2.80363203]
[1673639660306,0.00276526,19353.0,19352.0,3.38409421]
[1673639660541,0.00276526,19353.0,19352.0,3.32351949]
[1673639660748,0.00276526,19353.0,19352.0,3.23965475]
[1673639661009,0.00276526,19353.0,19352.0,3.39229233]
[1673639661260,0.00276526,19353.0,19352.0,2.57381623]
[1673639661507,0.00248874,19353.0,19352.0,2.57381623]
[1673639661810,0.00248874,19353.0,19352.0,2.80334522]
[1673639662067,0.00248874,19353.0,19352.0,2.95603819]
[1673639662304,0.00248874,19353.0,19352.0,3.42074997]
[1673639662586,0.00248874,19353.0,19352.0,2.20654462]
[1673639663083,0.00248874,19353.0,19352.0,1.53675268]
[1673639663586,0.00248874,19353.0,19352.0,1.02001068]
[1673639669055,0.00248874,19353.0,19352.0,1.53675268]
[1673639669312,0.00248874,19353.0,19352.0,1.07240112]
[1673639669607,0.00248874,19353.0,19352.0,1.88056862]
[1673639669856,0.00248874,19353.0,19352.0,2.18629127]
[1673639670094,0.00248874,19353.0,19352.0,2.70303327]
[1673639670339,0.00248874,19353.0,19352.0,2.39731062]
[1673639670584,0.00248874,19353.0,19352.0,3.23487008]
[1673639670900,0.00248874,19353.0,19352.0,2.70303327]
[1673639671097,0.00248874,19353.0,19352.0,3.29193779]
[1673639671346,0.00248874,19353.0,19352.0,2.55000034]
[1673639671612,0.00068556,19353.0,19352.0,3.29217821]
[1673639671826,0.00068556,19353.0,19352.0,2.98625448]
[1673639672097,0.00068556,19353.0,19352.0,2.55000034]
[1673639672344,0.00068556,19353.0,19352.0,2.85592856]
[1673639673355,0.00068556,19353.0,19352.0,3.34695338]
[1673639673612,0.00068556,19353.0,19352.0,2.52428316]
[1673639673866,0.00068556,19353.0,19352.0,2.67730852]
[1673639674117,0.00068556,19353.0,19352.0,2.52428316]
[1673639674368,0.00068556,19353.0,19352.0,2.83021138]
[1673639674611,0.00068556,19353.0,19352.0,2.12300622]
[1673639675100,0.00068556,19353.0,19352.0,1.89349229]
[1673639675594,0.00068556,19353.0,19352.0,1.19945029]
[1673639676091,0.00068556,19353.0,19352.0,1.04634203]
[1673639676610,0.00068556,19353.0,19352.0,1.19945029]
[1673639677101,0.00068556,19353.0,19352.0,1.14634203]
[1673639677366,0.00068556,19353.0,19352.0,1.29945029]
[1673639678646,0.00068556,19353.0,19352.0,1.5667057]
[1673639679142,0.00068556,19353.0,19352.0,1.3535407]
[1673639679935,1.03411556,19353.0,19352.0,0.34255244]
[1673639680199,1.03411556,19353.0,19352.0,0.18944418]
[1673639680200,1.97240656,19353.0,19352.0,0.18944418]
[1673639680461,3.30620274,19353.0,19352.0,0.18944418]
[1673639680711,3.30620274,19353.0,19351.0,0.00430435]
[1673639680712,3.51650768,19353.0,19351.0,0.00430435]
[1673639681043,0.414483,19352.0,19351.0,0.00430435]
[1673639681259,2.09026318,19352.0,19351.0,0.00430435]
[1673639681510,1.056467,19352.0,19351.0,0.00430435]
[1673639682513,2.09030566,19352.0,19351.0,0.00430435]
[1673639682757,1.056467,19352.0,19351.0,0.00430435]
[1673639683019,1.056467,19352.0,19351.0,0.01430435]
[1673639683020,1.058967,19352.0,19351.0,0.01430435]
[1673639683272,2.39282511,19352.0,19351.0,0.01430435]
[1673639683565,2.74386137,19352.0,19351.0,0.01430435]
[1673639683779,2.83296137,19352.0,19351.0,0.01430435]
[1673639684023,3.26754287,19352.0,19351.0,0.01430435]
[1673639684277,3.51142339,19352.0,19351.0,0.01430435]
[1673639684538,3.93515564,19352.0,19351.0,0.01430435]
[1673639684816,4.08993616,19352.0,19351.0,0.01430435]
[1673639685033,4.07893616,19352.0,19351.0,0.00430435]
[1673639685283,4.08993616,19352.0,19351.0,0.01430435]
[1673639686015,3.65535466,19352.0,19351.0,0.01430435]
[1673639686262,3.50057414,19352.0,19351.0,0.01430435]
[1673639688494,3.44829407,19352.0,19351.0,0.01430435]
[1673639689463,3.19485781,19352.0,19351.0,0.01430435]
[1673639690016,3.71159981,19352.0,19351.0,0.01430435]
[1673639690260,2.79626711,19352.0,19351.0,0.01430435]
[1673639690507,1.747926,19352.0,19351.0,0.01430435]
[1673639690752,1.673309,19352.0,19351.0,0.01430435]
[1673639691721,1.658826,19352.0,19351.0,0.01430435]
[1673639691966,1.92337926,19352.0,19351.0,0.01430435]
[1673639692219,1.90889626,19352.0,19351.0,0.01430435]
[1673639692477,2.95735193,19352.0,19351.0,0.01430435]
[1673639692722,2.20889626,19352.0,19351.0,0.01430435]
[1673639692965,2.53337226,19352.0,19351.0,0.01430435]
[1673639693215,2.283302,19352.0,19351.0,0.01430435]
[1673639693722,3.49501255,19352.0,19351.0,0.01430435]
[1673639693971,3.92959405,19352.0,19351.0,0.01430435]
[1673639695004,3.49501255,19352.0,19351.0,0.01430435]
[1673639695503,3.54729262,19352.0,19351.0,0.01430435]
[1673639695752,3.96923999,19352.0,19351.0,0.01430435]
[1673639696275,4.40382149,19352.0,19351.0,0.01430435]
[1673639697249,4.93005419,19352.0,19351.0,0.01430435]
[1673639697510,5.48653471,19352.0,19351.0,0.01430435]
[1673639697757,5.48653471,19352.0,19350.0,0.31095516]
[1673639697758,0.1,19351.0,19350.0,0.31095516]
[1673639698010,4.75865576,19351.0,19350.0,0.31095516]
[1673639698267,4.81093583,19351.0,19350.0,0.31095516]
[1673639699022,4.94693583,19351.0,19350.0,0.31095516]
[1673639699507,3.90001332,19351.0,19350.0,0.31095516]
[1673639699760,2.86600277,19351.0,19350.0,0.31095516]
[1673639700717,2.8137227,19351.0,19350.0,0.31095516]
[1673639701458,2.8125837,19351.0,19350.0,0.31095516]
[1673639702202,3.8466954,19351.0,19350.0,0.31095516]
[1673639702749,4.40112142,19351.0,19346.0,0.00573618]
[1673639702994,0.0891,19348.0,19346.0,0.00573618]
[1673639703248,1.565111,19347.0,19346.0,0.60287357]
[1673639703752,1.875104,19347.0,19346.0,0.60287357]
[1673639703997,1.550628,19347.0,19346.0,0.60287357]
[1673639704248,1.875104,19347.0,19346.0,0.60687357]
[1673639704756,1.550628,19347.0,19346.0,0.60268357]
[1673639705006,1.954104,19347.0,19346.0,0.60668357]
[1673639705254,1.629628,19347.0,19346.0,0.00954618]
[1673639705518,1.954104,19347.0,19346.0,0.00954618]
[1673639706524,2.254104,19347.0,19346.0,0.00954618]
[1673639706768,2.4584244,19347.0,19346.0,0.00954618]
[1673639707558,2.66872934,19347.0,19346.0,0.00954618]
[1673639707784,3.6938386,19347.0,19346.0,0.00954618]
[1673639708037,2.49238407,19347.0,19346.0,0.00954618]
[1673639710642,2.351304,19347.0,19342.0,0.10019]
[1673639710895,0.27600487,19346.0,19343.0,0.67217823]
[1673639711146,1.033858,19345.0,19343.0,0.67217823]
[1673639712903,1.033858,19345.0,19342.0,0.1]
[1673639713148,1.033858,19345.0,19343.0,0.031]
[1673639713400,1.033858,19345.0,19342.0,0.1]
[1673639713678,1.047858,19345.0,19343.0,0.66733148]
[1673639713931,1.033858,19345.0,19343.0,0.63633148]
[1673639714171,0.014,19345.0,19344.0,0.390778]
[1673639714460,0.014,19345.0,19344.0,1.42469]
[1673639715174,0.516841,19349.0,19344.0,1.42469]
[1673639715425,0.57715471,19349.0,19346.0,0.1]
[1673639715693,0.57715471,19349.0,19346.0,0.15475077]
[1673639716198,0.57715471,19349.0,19347.0,0.213236]
[1673639716456,0.57715471,19349.0,19346.0,0.1]
[1673639716457,0.71215471,19349.0,19346.0,0.1]
[1673639716688,0.57715471,19349.0,19346.0,0.1]
[1673639716938,0.71315471,19349.0,19346.0,0.103]
[1673639717169,0.57715471,19349.0,19346.0,0.1]
[1673639717407,0.71315471,19349.0,19347.0,0.003]
[1673639717647,0.57715471,19349.0,19346.0,0.1]
[1673639717901,1.09397671,19349.0,19346.0,0.1]
[1673639718141,1.09397671,19349.0,19346.0,0.68824491]
[1673639718388,1.22997671,19349.0,19346.0,0.69124491]
[1673639718646,1.22997671,19349.0,19347.0,0.50317024]
[1673639719648,1.09397671,19349.0,19347.0,0.50317024]
[1673639719895,1.22497671,19349.0,19347.0,0.50617024]
[1673639720141,0.05966983,19348.0,19347.0,0.003]
[1673639720390,1.09336783,19348.0,19347.0,0.003]
[1673639720637,1.19336783,19348.0,19347.0,0.003]
[1673639720894,1.09336783,19348.0,19347.0,0.003]
[1673639721138,1.61021683,19348.0,19345.0,0.82514438]
[1673639721397,1.82052177,19348.0,19345.0,0.82514438]
[1673639721886,1.74521683,19348.0,19347.0,0.003]
[1673639722131,2.77925207,19348.0,19347.0,0.003]
[1673639722894,2.64425207,19348.0,19345.0,1.05465831]
[1673639723142,1.74521683,19348.0,19345.0,1.05765831]
[1673639723392,1.74521683,19348.0,19346.0,0.15310826]
[1673639723393,1.61021683,19348.0,19346.0,0.15310826]
[1673639723623,1.74521683,19348.0,19347.0,0.003]
[1673639723875,1.61021683,19348.0,19345.0,1.05465831]
[1673639724118,0.04401769,19347.0,19345.0,1.05765831]
[1673639724368,1.07779569,19347.0,19345.0,1.05465831]
[1673639724622,1.07779569,19347.0,19346.0,0.003]
[1673639725593,1.07779569,19347.0,19345.0,0.82514438]
[1673639725846,1.33176016,19347.0,19345.0,0.82914438]
[1673639726083,1.25076016,19347.0,19345.0,0.82514438]
[1673639726326,1.15879569,19347.0,19346.0,0.004]
[1673639726588,1.07779569,19347.0,19345.0,0.82514438]
[1673639726830,1.15879569,19347.0,19345.0,0.82914438]
[1673639727810,1.15879569,19347.0,19345.0,1.05865831]
[1673639730298,1.15879569,19347.0,19345.0,1.15865831]
[1673639730544,1.114778,19347.0,19346.0,0.15310826]
[1673639730815,0.597882,19347.0,19346.0,0.76397264]
[1673639731066,0.597882,19347.0,19346.0,0.66397264]
[1673639731336,0.081,19347.0,19346.0,0.20785903]
[1673639731590,0.51681,19350.0,19346.0,1.65152813]
[1673639731834,0.56558638,19351.0,19349.0,0.0891]
[1673639732363,0.56558638,19351.0,19350.0,0.213195]
[1673639732646,0.56558638,19351.0,19349.0,0.0891]
[1673639732863,1.61345383,19351.0,19349.0,0.1291]
[1673639733133,0.56558638,19351.0,19349.0,0.0891]
[1673639733381,0.58058638,19351.0,19350.0,0.04]
[1673639733635,1.048562,19351.0,19350.0,0.04]
[1673639733964,2.40695581,19351.0,19350.0,0.04]
[1673639734190,2.45373822,19351.0,19350.0,0.04]
[1673639734476,2.12926222,19351.0,19350.0,0.04]
[1673639735251,1.59746922,19351.0,19348.0,1.70807432]
[1673639735484,0.57755141,19351.0,19349.0,0.69764707]
[1673639735732,0.56355141,19351.0,19349.0,0.75764707]
[1673639735986,0.06178241,19351.0,19350.0,0.04]
[1673639736227,0.04678241,19351.0,19349.0,0.84634707]
[1673639736476,0.06078241,19351.0,19349.0,0.84634707]
[1673639736731,0.04678241,19351.0,19349.0,0.99980445]
[1673639736980,0.06078241,19351.0,19349.0,1.03980445]
[1673639737491,0.014,19351.0,19350.0,1.42919689]
[1673639737762,0.014,19351.0,19350.0,2.42479999]
[1673639738005,0.014,19351.0,19350.0,1.9460615]
[1673639738258,0.014,19351.0,19350.0,3.22747592]
[1673639738506,0.014,19351.0,19350.0,3.77300962]
[1673639738754,0.00068556,19353.0,19350.0,3.22747592]
[1673639739000,0.00068556,19353.0,19352.0,0.1531433]
[1673639739250,0.00068556,19353.0,19352.0,1.68492914]
[1673639739759,0.00068556,19353.0,19352.0,1.43178584]
[1673639740258,0.08668556,19353.0,19352.0,1.43678584]
[1673639740507,0.08668556,19353.0,19352.0,0.218168]
[1673639740759,0.13439847,19353.0,19352.0,0.005]
[1673639742999,1.12011556,19353.0,19352.0,0.005]
[1673639743243,1.74459156,19353.0,19352.0,0.005]
[1673639743463,2.77842488,19353.0,19352.0,0.005]
[1673639743749,2.82440406,19353.0,19352.0,0.005]
[1673639743989,2.77842488,19353.0,19352.0,0.005]
[1673639744483,2.82268226,19353.0,19352.0,0.005]
[1673639745014,2.77842488,19353.0,19352.0,0.005]
[1673639745262,3.63913331,19353.0,19352.0,0.005]
[1673639746283,3.29656766,19353.0,19352.0,0.005]
[1673639747502,3.6837726,19353.0,19352.0,0.005]
[1673639747753,4.58745552,19353.0,19352.0,0.00016606]
[1673639748005,3.47346766,19353.0,19352.0,0.00016606]
[1673639748501,3.39385432,19353.0,19348.0,0.00019]
[1673639748748,1.65562126,19352.0,19348.0,0.00019]
[1673639749014,3.00863132,19351.0,19348.0,0.00019]
[1673639749280,1.86062694,19351.0,19348.0,0.00019]
[1673639749548,0.1,19349.0,19348.0,0.00019]
[1673639749792,0.516822,19349.0,19348.0,0.66957374]
[1673639750046,1.08143534,19350.0,19348.0,0.66938374]
[1673639750320,1.08145834,19350.0,19348.0,0.66938374]
[1673639751327,1.08145834,19350.0,19348.0,0.67038374]
[1673639751593,1.08145834,19350.0,19348.0,0.66938374]
[1673639751842,0.581818,19350.0,19348.0,0.77038374]
[1673639752079,0.581818,19350.0,19349.0,0.68692009]
[1673639752326,0.581818,19350.0,19349.0,0.83077086]
[1673639752327,0.065,19350.0,19349.0,0.83077086]
[1673639752589,0.065,19350.0,19349.0,1.88891033]
[1673639752955,0.065,19350.0,19349.0,2.29027722]
[1673639753123,0.56002091,19353.0,19349.0,2.44340498]
[1673639753346,0.04328291,19353.0,19350.0,0.24152011]
[1673639753596,0.01554308,19354.0,19351.0,0.313181]
[1673639753850,0.07364464,19354.0,19351.0,0.05475077]
[1673639754345,0.05457645,19353.0,19350.0,0.75830411]
[1673639754594,0.05457645,19353.0,19351.0,0.62389027]
[1673639755390,0.06857645,19353.0,19351.0,0.62389027]
[1673639755642,0.014,19353.0,19351.0,0.62389027]
[1673639755894,0.01554308,19354.0,19352.0,0.0887]
[1673639756143,0.015,19353.0,19352.0,0.0887]
[1673639756660,0.015,19353.0,19352.0,0.301864]
[1673639757157,0.015,19353.0,19352.0,0.81908684]
[1673639757657,0.01554308,19354.0,19352.0,0.83308684]
[1673639757901,0.01554308,19354.0,19352.0,0.70592284]
[1673639758151,0.01554308,19354.0,19352.0,0.60592284]
[1673639758405,0.015,19353.0,19352.0,0.61992284]
[1673639758660,0.01554308,19354.0,19352.0,0.60592284]
[1673639758921,0.01554308,19354.0,19353.0,0.213153]
[1673639758922,0.02754308,19354.0,19353.0,0.213153]
[1673639759204,0.02754308,19354.0,19352.0,0.61992284]
[1673639759695,0.02754308,19354.0,19353.0,0.52498996]
[1673639759959,0.02754308,19354.0,19352.0,0.1027]
[1673639760224,0.02754308,19354.0,19353.0,0.68451672]
[1673639761054,0.01554308,19354.0,19353.0,0.69551672]
[1673639761290,0.02054308,19354.0,19353.0,0.69551672]
[1673639762766,0.0727016,19354.0,19353.0,0.011]
[1673639763047,0.5893906,19354.0,19353.0,0.011]
[1673639766470,1.44608406,19354.0,19353.0,0.011]
[1673639766721,0.1,19353.0,19347.0,1.1929465]
[1673639766962,0.1,19353.0,19348.0,0.50262956]
[1673639766963,0.1,19351.0,19348.0,0.50262956]
[1673639767223,0.1,19351.0,19349.0,0.00019]
[1673639767224,2.09366594,19350.0,19349.0,0.00019]
[1673639767476,2.183361,19350.0,19349.0,0.00019]
[1673639767724,4.37955193,19350.0,19349.0,0.00019]
[1673639767963,3.91091089,19350.0,19349.0,0.00019]
[1673639768218,3.98491089,19350.0,19349.0,0.00019]
[1673639768462,3.96319096,19350.0,19349.0,0.00019]
[1673639768963,3.98491089,19350.0,19349.0,0.00019]
[1673639769199,3.91091089,19350.0,19349.0,0.00019]
[1673639769434,0.1,19349.0,19347.0,0.00549887]
[1673639769674,1.78042,19348.0,19347.0,0.00549887]
[1673639769926,3.12287489,19348.0,19347.0,0.00549887]
[1673639770421,3.17970612,19348.0,19347.0,0.00549887]
[1673639770919,2.13931537,19348.0,19347.0,0.00549887]
[1673639771159,1.91331537,19348.0,19347.0,0.00549887]
[1673639771394,2.21331537,19348.0,19347.0,0.00549887]
[1673639772213,3.19697296,19348.0,19347.0,0.00549887]
[1673639772428,2.21041421,19348.0,19347.0,0.00549887]
[1673639773223,1.78402421,19348.0,19347.0,0.00549887]
[1673639775128,2.08402421,19348.0,19347.0,0.00549887]
[1673639775891,1.78402421,19348.0,19347.0,0.00549887]
[1673639776417,1.107698,19348.0,19347.0,0.72113036]
[1673639776665,0.590849,19348.0,19347.0,0.72113036]
[1673639777159,0.074,19348.0,19347.0,0.72113036]
[1673639777408,0.074,19348.0,19347.0,1.08748647]
[1673639777919,0.074,19348.0,19347.0,1.18748647]
[1673639778174,0.074,19348.0,19347.0,1.08748647]
[1673639778910,0.074,19348.0,19347.0,0.93436636]
[1673639779164,0.074,19348.0,19347.0,0.72113036]
[1673639782181,0.074,19348.0,19347.0,0.93436636]
[1673639784664,0.074,19348.0,19347.0,1.08748647]
[1673639784913,0.074,19348.0,19347.0,1.40630141]
[1673639785164,0.074,19348.0,19347.0,2.04091469]
[1673639785403,0.074,19348.0,19347.0,2.28394321]
[1673639785651,0.06660001,19348.0,19347.0,3.01599389]
[1673639785894,0.06660001,19348.0,19347.0,2.63235043]
[1673639787148,0.05638667,19352.0,19347.0,2.63235043]
[1673639787367,0.05638667,19352.0,19351.0,0.0885]
[1673639787655,0.05638667,19352.0,19351.0,0.301685]
[1673639787906,0.05638667,19352.0,19351.0,0.0885]
[1673639788405,0.07138667,19352.0,19351.0,0.1045]
[1673639788900,0.015,19352.0,19351.0,0.1045]
[1673639790138,0.015,19352.0,19351.0,0.31768]
[1673639792897,0.015,19352.0,19351.0,0.1045]
[1673639793147,0.015,19352.0,19351.0,0.31768]
[1673639793876,1.10825761,19352.0,19351.0,0.1045]
[1673639794375,1.78749947,19352.0,19351.0,0.016]
[1673639794640,2.36070186,19352.0,19351.0,0.016]
[1673639794880,2.198202,19352.0,19351.0,0.016]
[1673639795370,2.24302468,19352.0,19351.0,0.016]
[1673639795848,1.94302468,19352.0,19351.0,0.016]
[1673639796098,2.24302468,19352.0,19351.0,0.016]
[1673639796580,2.198202,19352.0,19351.0,0.016]
[1673639797102,3.23204938,19352.0,19351.0,0.016]
[1673639798819,3.29118571,19352.0,19351.0,0.016]
[1673639799065,3.23204938,19352.0,19351.0,0.016]
[1673639799312,3.27622005,19352.0,19351.0,0.016]
[1673639801823,3.23204938,19352.0,19351.0,0.016]
[1673639802313,3.29044288,19352.0,19351.0,0.016]
[1673639802809,2.99044288,19352.0,19351.0,0.016]
[1673639803059,2.14069929,19352.0,19351.0,0.14166]
[1673639803304,1.1068775,19352.0,19351.0,0.14166]
[1673639804315,1.1068775,19352.0,19351.0,0.14012216]
[1673639804570,0.015,19352.0,19351.0,0.75512407]
[1673639804815,0.015,19352.0,19351.0,1.21041299]
[1673639805059,0.015,19352.0,19351.0,1.43992637]
[1673639805568,0.015,19352.0,19351.0,1.33992637]
[1673639805829,0.015,19352.0,19351.0,1.11041299]
[1673639806565,0.015,19352.0,19351.0,1.21041299]
[1673639806813,0.015,19352.0,19351.0,1.11041299]
[1673639808043,0.015,19352.0,19351.0,1.21041299]
[1673639808798,0.015,19352.0,19351.0,1.72718199]
[1673639809048,0.015,19352.0,19351.0,1.62718199]
[1673639810392,0.015,19352.0,19351.0,1.85669537]
[1673639810642,0.015,19352.0,19351.0,1.62718199]
[1673639812563,0.015,19352.0,19351.0,1.85669537]
[1673639813623,0.015,19352.0,19351.0,1.11041299]
[1673639813844,0.015,19352.0,19351.0,1.43992637]
[1673639814098,0.015,19352.0,19351.0,1.95669537]
[1673639814348,0.015,19352.0,19351.0,1.21426637]
[1673639814593,0.015,19352.0,19351.0,0.83174407]
[1673639814842,0.015,19352.0,19351.0,0.61856407]
[1673639815349,0.015,19352.0,19351.0,0.77157299]
[1673639815629,0.015,19352.0,19351.0,0.83174407]
[1673639816375,0.015,19352.0,19351.0,0.98475299]
[1673639817135,0.015,19352.0,19351.0,1.06125745]
[1673639817414,0.015,19352.0,19351.0,1.46727529]
[1673639817899,0.015,19352.0,19351.0,1.57802645]
[1673639818131,0.015,19352.0,19351.0,1.73122423]
[1673639818380,0.015,19352.0,19351.0,1.57802645]
[1673639819592,0.015,19352.0,19351.0,3.22151471]
[1673639819853,0.015,19352.0,19351.0,2.62287457]
[1673639820101,0.0116106,19352.0,19351.0,2.5681238]
[1673639820342,0.0116106,19352.0,19351.0,2.68706511]
[1673639821095,0.0116106,19352.0,19351.0,3.33836254]
[1673639821347,0.0116106,19352.0,19351.0,3.45731575]
[1673639822075,0.22191554,19352.0,19351.0,4.0923256]
[1673639822323,0.0116106,19352.0,19351.0,2.59195901]
[1673639823365,0.0116106,19352.0,19351.0,3.02493365]
[1673639824101,0.0116106,19352.0,19351.0,3.02478964]
[1673639824602,0.0116106,19352.0,19351.0,3.48384028]
[1673639825094,0.0116106,19352.0,19351.0,2.591815]
[1673639825339,0.0116106,19352.0,19351.0,2.368686]